fUSD/lending_fUSD_20241030
["ID","MTS","AMOUNT","RATE_DAILY","PERIOD"]
[341068140,1730323848169,-500.0,0.00043693,4]
[341068141,1730323848179,-500.0,0.00043696,4]
[341068142,1730323848188,-3700.0,0.000437,2]
[341068143,1730323848197,-500.0,0.00043701,4]
[341068144,1730323848206,-500.0,0.00043703,4]
[341068145,1730323848215,-500.0,0.00043705,4]
[341068146,1730323848225,-500.0,0.0004371,4]
[341068147,1730323848234,-500.0,0.00043712,4]
[341068148,1730323848243,-500.0,0.00043714,4]
[341068149,1730323848252,-500.0,0.00043719,4]
[341068150,1730323848261,-500.0,0.00043721,4]
[341068151,1730323848270,-154.13,0.00043734,2]
[341068152,1730323848281,-200.0,0.00043743,2]
[341068153,1730323848289,-39511.46664202,0.00043744,2]
[341068154,1730323848298,-200.0,0.00043744,2]
[341068155,1730323848307,-78005.46324934,0.00043758,2]
[341068156,1730323848317,-154.13,0.00043761,2]
[341068157,1730323848326,-78005.46324934,0.00043771,2]
[341068158,1730323848335,-22481.50069984,0.00043771,2]
[341068159,1730323848347,-200.0,0.00043779,2]
[341068160,1730323848356,-17422.63735085,0.00043782,2]
[341068161,1730323848366,-154.13,0.00043784,2]
[341068162,1730323848375,-154.13,0.00043784,2]
[341068163,1730323848384,-154.13,0.00043784,2]
[341068164,1730323848394,-154.13,0.00043784,2]
[341068165,1730323848404,-241.10586066,0.00043787,2]
[341068166,1730323848413,-39511.46664202,0.00043787,2]
[341068167,1730323848423,-241.10586066,0.0004379,2]
[341068168,1730323848432,-326620.88952571,0.00043794,2]
[341068169,1730323848544,-13598.19999999,0.00043794,2]
[341068170,1730323853663,150.0,0.00017605,2]
[341068174,1730324239899,550.0,0.00015,2]
[341068175,1730324241003,600.0,0.00017,2]
[341068176,1730324242245,650.0,0.00019,2]
[341068177,1730324403415,192.11697408,0.00019,2]
[341068178,1730324543810,155.93,0.00015342,2]
[341068281,1730325031848,-700.0,0.00021,2]
[341068282,1730325031859,-500.0,0.00032876,2]
[341068283,1730325031869,-1000.0,0.00035616,2]
[341068284,1730325031878,-487.72843542,0.00038356,2]
[341068285,1730325032001,-1458.37,0.00038356,2]
[341068288,1730325037905,-850.31100141,0.00038356,2]
[341068289,1730325038055,-5545.55842073,0.00038356,2]
[341068290,1730325038067,-257.82237684,0.00038356,2]
[341068291,1730325038174,-7069.82735309,0.00038356,2]
[341068292,1730325038183,-1500.0,0.00038356,2]
[341068293,1730325038194,-2311.42,0.00038356,2]
[341068294,1730325038205,-1374.54,0.00038516,2]
[341068295,1730325038214,-152.0,0.00038789,3]
[341068296,1730325038223,-589.04,0.000389,2]
[341068297,1730325038232,-198.024,0.000391,53]
[341068298,1730325038241,-299.326,0.00039289,2]
[341068299,1730325038250,-602.41,0.00039289,2]
[341068300,1730325038259,-2206.0,0.00039289,2]
[341068301,1730325038268,-164.655,0.00039289,2]
[341068302,1730325038277,-250.0,0.00039289,2]
[341068303,1730325038286,-150.0,0.00039289,2]
[341068304,1730325038295,-202.683,0.00039289,2]
[341068305,1730325038304,-151.28,0.00040079,2]
[341068306,1730325038313,-164.9,0.00040089,2]
[341068307,1730325038322,-712.0,0.00040364,2]
[341068308,1730325038331,-23900.0,0.00040384,2]
[341068309,1730325038340,-1770.92,0.00040409,2]
[341068310,1730325038349,-433.97,0.00040417,2]
[341068311,1730325038358,-155.62,0.0004042,2]
[341068312,1730325038367,-288.0,0.0004046,2]
[341068313,1730325038376,-250.0,0.00040471,2]
[341068314,1730325038385,-250.0,0.00040474,120]
[341068315,1730325038395,-2168.68,0.00040488,2]
[341068317,1730325038404,-250.0,0.00040497,2]
[341068318,1730325038413,-150.0,0.00040498,7]
[341068319,1730325038422,-216.27,0.00040762,2]
[341068320,1730325038431,-216.27,0.00040772,2]
[341068321,1730325038439,-1374.54,0.0004078,2]
[341068322,1730325038450,-216.27,0.00040783,2]
[341068323,1730325038459,-216.27,0.00040794,2]
[341068324,1730325038468,-151.3131205,0.000408,5]
[341068325,1730325038477,-500.0,0.000408,2]
[341068326,1730325038486,-203.849721,0.000408,5]
[341068327,1730325038495,-216.27,0.00040805,2]
[341068328,1730325038504,-216.27,0.00040815,2]
[341068329,1730325038513,-216.27,0.00040826,2]
[341068330,1730325038522,-216.27,0.00040837,2]
[341068331,1730325038530,-216.27,0.00040848,2]
[341068332,1730325038539,-216.27,0.00040858,2]
[341068333,1730325038549,-216.27,0.00040869,2]
[341068334,1730325038557,-216.27,0.0004088,2]
[341068335,1730325038566,-216.27,0.0004089,2]
[341068336,1730325038575,-216.27,0.00040901,2]
[341068337,1730325038584,-216.27,0.00040912,2]
[341068338,1730325038593,-216.27,0.00040923,2]
[341068339,1730325038602,-216.27,0.00040933,2]
[341068340,1730325038610,-216.27,0.00040944,2]
[341068341,1730325038619,-500.0,0.0004095,5]
[341068342,1730325038628,-500.0,0.0004095,5]
[341068343,1730325038637,-216.27,0.00040955,2]
[341068344,1730325038646,-216.27,0.00040966,2]
[341068345,1730325038654,-150.0,0.00041,30]
[341068346,1730325038663,-2000.0,0.00041095,2]
[341068347,1730325038673,-150.0,0.00041096,2]
[341068348,1730325038682,-157.0,0.00041096,2]
[341068349,1730325038693,-472.9,0.000411,120]
[341068350,1730325038702,-181.0,0.000411,2]
[341068351,1730325038711,-150.0,0.00041133,2]
[341068352,1730325038720,-153.0,0.0004118,31]
[341068353,1730325038730,-153.0,0.0004118,31]
[341068354,1730325038738,-153.0,0.0004118,31]
[341068355,1730325038747,-150.0,0.00041364,2]
[341068356,1730325038756,-150.0,0.00041391,2]
[341068357,1730325038765,-167.25,0.00041546,2]
[341068358,1730325038774,-150.0,0.00041557,2]
[341068359,1730325038783,-150.0,0.00041614,2]
[341068360,1730325038792,-167.03,0.00041699,2]
[341068361,1730325038801,-150.0,0.00041704,2]
[341068362,1730325038810,-150.0,0.00041763,2]
[341068363,1730325038820,-150.0,0.00041856,2]
[341068364,1730325038830,-150.0,0.00041943,2]
[341068365,1730325038840,-150.0,0.00042,10]
[341068366,1730325038849,-150.0,0.00042177,2]
[341068367,1730325038858,-150.0,0.00042289,2]
[341068368,1730325038866,-150.0,0.00042289,2]
[341068369,1730325038875,-433.97,0.00042438,2]
[341068370,1730325038885,-151.28,0.00042751,2]
[341068371,1730325038894,-1666.00658904,0.0004299,2]
[341068372,1730325038903,-150.0,0.00043,30]
[341068373,1730325038912,-1374.54,0.00043044,2]
[341068374,1730325038920,-150.0,0.00043259,2]
[341068375,1730325038929,-395.32926581,0.00043356,2]
[341068376,1730325038938,-14282.8691,0.00043594,2]
[341068377,1730325038948,-3463.4004,0.00043594,2]
[341068378,1730325038958,-5711.0599,0.00043594,2]
[341068379,1730325038967,-197.7586,0.00043594,2]
[341068380,1730325038976,-572.8108,0.00043594,2]
[341068381,1730325038985,-376.96,0.00043684,30]
[341068382,1730325038994,-2500.0,0.00043689,2]
[341068383,1730325039003,-1000.0,0.00043689,2]
[341068384,1730325039013,-5514.7082,0.00043694,2]
[341068385,1730325039022,-62455.911,0.00043694,2]
[341068386,1730325039031,-2770.392,0.00043694,2]
[341068387,1730325039040,-28999.6546,0.00043694,2]
[341068388,1730325039049,-1500.0,0.00043694,2]
[341068389,1730325039058,-211.85665648,0.00043694,15]
[341068390,1730325039067,-310.17111383,0.00043694,2]
[341068391,1730325039076,-162.18717584,0.00043707,12]
[341068392,1730325039086,-7142.3625936,0.00043789,2]
[341068393,1730325039095,-15511.7670151,0.00043789,2]
[341068394,1730325039104,-1536.85618049,0.00043793,2]
[341068395,1730325039113,-216100.38368151,0.00043794,2]
[341068396,1730325039122,-19216.5723116,0.00043794,30]
[341068397,1730325039131,-33758.72099564,0.00043794,2]
[341068398,1730325039812,-1000.0,0.00040384,2]
[341068399,1730325039821,-1166.09,0.00043794,2]
[341068400,1730325039957,-725.52816,0.00043794,2]
[341068401,1730325040105,-32071.17547164,0.00043794,2]
[341068402,1730325040156,-1068.62373338,0.00043794,2]
[341068414,1730325042828,-203.354,0.00039289,2]
[341068415,1730325042842,-74.52399904,0.00040488,2]
[341068416,1730325042981,-925.47600096,0.00040488,2]
[341068417,1730325042990,-9215.32488868,0.00043794,2]
[341068418,1730325043000,-154.02,0.00043795,2]
[341068419,1730325043009,-216.33843368,0.00043795,2]
[341068420,1730325043018,-292.83110865,0.000438,2]
[341068421,1730325043028,-401.0,0.00043805,7]
[341068422,1730325043038,-19152.42210197,0.00043805,2]
[341068441,1730325053129,150.0,0.00017605,2]
[341068450,1730325445088,2111.71063065,0.0001726,2]
[341068451,1730325602375,500.0,0.0001726,2]
[341068452,1730325602754,356.33002142,0.0001726,2]
[341068460,1730326045816,550.0,0.00015,2]
[341068491,1730326122911,158.11,0.00015342,2]
[341068501,1730326232063,-346.0,0.000313,2]
[341068502,1730326232076,-216.87,0.00040425,2]
[341068503,1730326232086,-1213.96,0.00040536,2]
[341068504,1730326232095,-396.0,0.000411,2]
[341068505,1730326232104,-1186.0,0.000411,2]
[341068506,1730326232114,-350.0,0.000411,2]
[341068507,1730326232123,-3206.85297008,0.000414,2]
[341068508,1730326232134,-182.33781767,0.000414,2]
[341068509,1730326232146,-551.63,0.00042,2]
[341068510,1730326232155,-150.0,0.00042067,2]
[341068511,1730326232164,-5140.60155038,0.00042088,2]
[341068512,1730326232176,-7033.89835756,0.00042088,2]
[341068513,1730326232188,-2085.64503914,0.00042088,2]
[341068514,1730326232199,-1074.32,0.00042088,2]
[341068515,1730326232210,-1433.03505292,0.00042088,2]
[341068516,1730326232219,-164.9,0.00042091,2]
[341068517,1730326232228,-693.32793919,0.00042099,2]
[341068518,1730326232239,-192.13206081,0.00042099,2]
[341068519,1730326232248,-260.38,0.0004212,2]
[341068520,1730326232257,-67.90787835,0.00042151,2]
[341068521,1730326232268,-501.69212165,0.00042151,2]
[341068522,1730326232278,-250.0,0.00042283,2]
[341068523,1730326232291,-150.0,0.00042287,7]
[341068524,1730326232300,-7193.8224,0.00042294,7]
[341068525,1730326232309,-157.0,0.00042304,2]
[341068526,1730326232318,-151.28,0.00042415,2]
[341068527,1730326232328,-430.4,0.00042505,2]
[341068528,1730326232337,-1213.96,0.000428,2]
[341068529,1730326232347,-179.34,0.00042805,120]
[341068530,1730326232356,-150.0,0.00043191,2]
[341068531,1730326232365,-1201.9913,0.000432,7]
[341068532,1730326232375,-300.0,0.000433,15]
[341068533,1730326232386,-158.419,0.000433,67]
[341068534,1730326232395,-4219.54375235,0.0004337,2]
[341068535,1730326232407,-1649.09184316,0.0004337,2]
[341068540,1730326237954,-306.98179632,0.0004337,2]
[341068542,1730326237996,-14887.58048051,0.0004337,2]
[341068543,1730326238007,-700.0,0.000434,15]
[341068544,1730326238018,-1000.0,0.000435,15]
[341068545,1730326238029,-5939.30728502,0.00043594,2]
[341068546,1730326238041,-22217.14766714,0.00043594,2]
[341068547,1730326238054,-4088.49960002,0.00043594,2]
[341068548,1730326238069,-1000.0,0.00042151,2]
[341068549,1730326238078,-4632.81984782,0.00043594,2]
[341068550,1730326238087,-1400.0,0.000436,15]
[341068551,1730326238096,-1800.0,0.000437,15]
[341068552,1730326238106,-736.1919,0.00043705,2]
[341068553,1730326238115,-2500.0,0.00043705,2]
[341068554,1730326238123,-435.30132812,0.00043705,15]
[341068555,1730326238134,-19.68734297,0.00043705,15]
[341068556,1730326238144,-211.85665647,0.00043707,15]
[341068557,1730326238153,-166.59,0.00043778,2]
[341068558,1730326238163,-154.03,0.00043795,2]
[341068559,1730326238174,-520.44800949,0.00043795,2]
[341068560,1730326238185,-55.63640545,0.00043799,2]
[341068561,1730326238211,-8569.371877,0.00043799,2]
[341068562,1730326238222,-4326.87384675,0.00043799,2]
[341068563,1730326238231,-1672.55494088,0.00043799,2]
[341068564,1730326238242,-2069.23769278,0.00043799,2]
[341068565,1730326238253,-2268.39145484,0.00043799,2]
[341068566,1730326238262,-300.0,0.000438,15]
[341068567,1730326238271,-768.42809024,0.00043804,2]
[341068568,1730326238280,-5845.03857157,0.00043805,17]
[341068569,1730326238299,-250.0,0.00043805,17]
[341068653,1730326240044,-2500.0,0.00043705,2]
[341068654,1730326240054,-917.6717,0.00043805,17]
[341068655,1730326240067,-5487.33920225,0.00043805,17]
[341068656,1730326240191,-12706.68060609,0.00043805,17]
[341068657,1730326240201,-21357.96301462,0.00043805,16]
[341068658,1730326240244,-1090.2167429,0.00043805,16]
[341068659,1730326240256,-439.17200005,0.00043805,16]
[341068660,1730326240267,-145091.28619878,0.00043805,16]
[341068661,1730326240300,-1000.0,0.00042304,2]
[341068663,1730326240309,-76191.74681135,0.00043805,16]
[341068665,1730326240319,-537167.05110524,0.00043805,2]
[341068667,1730326240328,-343.0,0.00043807,7]
[341068668,1730326240337,-195.21379535,0.00043807,30]
[341068669,1730326240347,-78005.46324934,0.00043807,2]
[341068670,1730326240355,-500.0,0.00043807,2]
[341068671,1730326240365,-17420.87533526,0.00043807,2]
[341068672,1730326240374,-2911.02710482,0.00043809,2]
[341068673,1730326240384,-2911.02710482,0.0004381,2]
[341068674,1730326240394,-13255.19711762,0.00043813,2]
[341068675,1730326240403,-200.0,0.00043814,2]
[341068676,1730326240412,-13255.19711762,0.00043819,2]
[341068677,1730326240422,-39511.46664202,0.00043821,2]
[341068678,1730326240431,-22481.50069984,0.00043824,2]
[341068679,1730326240441,-13255.19711762,0.00043826,2]
[341068680,1730326240450,-241.10586066,0.00043829,2]
[341068681,1730326240459,-520.44800949,0.00043831,2]
[341068682,1730326240469,-22481.50069984,0.00043833,2]
[341068683,1730326240479,-17420.87533526,0.00043834,2]
[341068684,1730326240488,-1586.71,0.00043834,120]
[341068685,1730326240497,-500.0,0.00043835,7]
[341068686,1730326240507,-500.0,0.00043835,2]
[341068687,1730326240516,-500.0,0.00043835,2]
[341068688,1730326240525,-500.0,0.00043835,2]
[341068689,1730326240535,-500.0,0.00043835,2]
[341068690,1730326240544,-500.0,0.00043835,2]
[341068691,1730326240553,-500.0,0.00043835,2]
[341068692,1730326240562,-500.0,0.00043835,30]
[341068693,1730326240574,-888.0,0.00043835,60]
[341068694,1730326240700,-888.0,0.00043835,60]
[341068695,1730326240715,-888.0,0.00043835,60]
[341068696,1730326240725,-791.9670265,0.00043835,60]
[341068697,1730326240735,-500.0,0.00043835,2]
[341068698,1730326240744,-548.57128259,0.00043835,2]
[341068699,1730326240756,-20000.0,0.00043835,2]
[341068700,1730326240767,-20000.0,0.00043835,2]
[341068701,1730326240777,-20000.0,0.00043835,2]
[341068702,1730326240787,-16182.70850999,0.00043835,2]
[341068703,1730326240798,-500.0,0.00043835,30]
[341068704,1730326240807,-500.0,0.00043835,2]
[341068705,1730326240817,-500.0,0.00043835,2]
[341068706,1730326240826,-500.0,0.00043835,2]
[341068707,1730326240835,-500.0,0.00043835,2]
[341068708,1730326240843,-500.0,0.00043835,2]
[341068709,1730326240852,-500.0,0.00043835,30]
[341068710,1730326240861,-500.0,0.00043835,30]
[341068711,1730326240871,-500.0,0.00043835,30]
[341068712,1730326240881,-500.0,0.00043835,30]
[341068713,1730326240892,-500.0,0.00043835,30]
[341068714,1730326240901,-1130.82712646,0.00043835,10]
[341068715,1730326240910,-500.0,0.00043835,30]
[341068716,1730326240919,-150.0,0.00043835,2]
[341068717,1730326240929,-500.0,0.00043835,2]
[341068718,1730326240938,-500.0,0.00043835,2]
[341068719,1730326240948,-241.10586066,0.00043835,2]
[341068720,1730326240959,-500.0,0.0004384,2]
[341068721,1730326240968,-500.0,0.0004384,2]
[341068722,1730326240977,-500.0,0.0004384,2]
[341068723,1730326240986,-500.0,0.0004384,2]
[341068724,1730326240995,-500.0,0.0004384,30]
[341068725,1730326241005,-253.06465416,0.0004384,30]
[341068726,1730326241014,-241.10586066,0.0004384,2]
[341068727,1730326241023,-556319.47320721,0.00043841,2]
[341068728,1730326241032,-151.288234,0.00043841,14]
[341068729,1730326241042,-151.0,0.00043841,14]
[341068730,1730326241051,-153.066387,0.00043841,14]
[341068731,1730326241060,-152.404133,0.00043841,14]
[341068732,1730326241069,-151.0,0.00043841,14]
[341068733,1730326241078,-151.0,0.00043841,14]
[341068734,1730326241088,-151.0,0.00043841,14]
[341068735,1730326241097,-151.0,0.00043841,14]
[341068736,1730326241106,-151.0,0.00043841,14]
[341068737,1730326241115,-151.0,0.00043841,14]
[341068738,1730326241124,-151.0,0.00043841,14]
[341068739,1730326241133,-151.0,0.00043841,14]
[341068740,1730326241144,-151.0,0.00043841,14]
[341068741,1730326241153,-151.0,0.00043841,14]
[341068742,1730326241162,-176.258158,0.00043841,14]
[341068743,1730326241172,-151.0,0.00043841,14]
[341068744,1730326241181,-151.0,0.00043841,14]
[341068745,1730326241190,-151.0,0.00043841,14]
[341068746,1730326241199,-151.0,0.00043841,14]
[341068747,1730326241207,-151.0,0.00043841,14]
[341068748,1730326241217,-151.0,0.00043841,14]
[341068749,1730326241226,-151.0,0.00043841,14]
[341068750,1730326241236,-151.0,0.00043841,14]
[341068751,1730326241245,-151.0,0.00043841,14]
[341068752,1730326241254,-157.94281,0.00043841,14]
[341068753,1730326241263,-156.612884,0.00043841,14]
[341068754,1730326241273,-151.0,0.00043841,14]
[341068755,1730326241282,-151.0,0.00043841,7]
[341068756,1730326241295,-151.0,0.00043841,14]
[341068757,1730326241304,-369.445019,0.00043841,14]
[341068758,1730326241314,-369.445019,0.00043841,14]
[341068759,1730326241324,-151.0,0.00043841,14]
[341068760,1730326241334,-151.0,0.00043841,14]
[341068761,1730326241344,-220.207478,0.00043841,14]
[341068762,1730326241353,-151.0,0.00043841,7]
[341068763,1730326241363,-168.781846,0.00043841,14]
[341068764,1730326241372,-168.781846,0.00043841,14]
[341068765,1730326241381,-229.603139,0.00043841,14]
[341068766,1730326241391,-798.839913,0.00043841,14]
[341068767,1730326241400,-229.603139,0.00043841,14]
[341068768,1730326241409,-798.839913,0.00043841,14]
[341068769,1730326241418,-151.0,0.00043841,14]
[341068770,1730326241428,-151.0,0.00043841,14]
[341068771,1730326241438,-151.0,0.00043841,14]
[341068772,1730326241447,-155.526545,0.00043841,14]
[341068773,1730326241457,-151.0,0.00043841,14]
[341068774,1730326241468,-151.0,0.00043841,14]
[341068775,1730326241477,-151.0,0.00043841,14]
[341068776,1730326241487,-151.0,0.00043841,14]
[341068777,1730326241496,-15670.69558009,0.00043841,30]
[341068778,1730326241506,-195.2207391,0.00043843,2]
[341068779,1730326241515,-2937.18613418,0.00043843,2]
[341068780,1730326241525,-991.17778235,0.00043843,2]
[341068781,1730326241541,-154.03,0.00043844,2]
[341068782,1730326241554,-500.0,0.00043845,2]
[341068783,1730326241564,-78005.46324934,0.00043846,2]
[341068784,1730326241574,-22481.50069984,0.00043854,2]
[341068785,1730326241584,-500.0,0.00043854,2]
[341068786,1730326241594,-2911.02710482,0.00043855,2]
[341068787,1730326241604,-39511.46664202,0.00043855,2]
[341068788,1730326241614,-17420.87533526,0.00043859,2]
[341068789,1730326241624,-17422.63735085,0.00043859,2]
[341068790,1730326241633,-2911.02710482,0.00043866,2]
[341068791,1730326241644,-500.0,0.00043866,2]
[341068792,1730326241653,-500.0,0.00043866,2]
[341068793,1730326241663,-151.0,0.00043866,14]
[341068794,1730326241672,-151.0,0.00043866,14]
[341068795,1730326241683,-151.0,0.00043866,14]
[341068796,1730326241692,-151.0,0.00043866,14]
[341068797,1730326241702,-500.0,0.00043866,2]
[341068798,1730326241712,-500.0,0.00043866,2]
[341068799,1730326241722,-151.0,0.00043866,14]
[341068800,1730326241732,-151.0,0.00043866,14]
[341068801,1730326241742,-201.391939,0.00043866,14]
[341068802,1730326241751,-151.0,0.00043866,14]
[341068803,1730326241761,-151.0,0.00043866,14]
[341068804,1730326241771,-151.0,0.00043866,14]
[341068805,1730326241780,-151.0,0.00043866,14]
[341068806,1730326241790,-193.16938,0.00043866,14]
[341068807,1730326241800,-151.0,0.00043866,14]
[341068808,1730326241810,-151.0,0.00043866,14]
[341068809,1730326241821,-151.0,0.00043866,7]
[341068810,1730326241830,-151.0,0.00043866,14]
[341068811,1730326241840,-369.445019,0.00043866,14]
[341068812,1730326241850,-369.445019,0.00043866,14]
[341068813,1730326241859,-151.0,0.00043866,14]
[341068814,1730326241870,-151.0,0.00043866,14]
[341068815,1730326241880,-168.781846,0.00043866,14]
[341068816,1730326241890,-168.781846,0.00043866,14]
[341068817,1730326241900,-229.603139,0.00043866,14]
[341068818,1730326241909,-798.839913,0.00043866,14]
[341068819,1730326241920,-229.603139,0.00043866,14]
[341068820,1730326241930,-798.839913,0.00043866,14]
[341068821,1730326241939,-151.0,0.00043866,14]
[341068822,1730326241949,-151.0,0.00043866,14]
[341068823,1730326241959,-151.0,0.00043866,14]
[341068824,1730326241969,-151.198624,0.00043866,14]
[341068825,1730326241978,-151.0,0.00043866,14]
[341068826,1730326241988,-266.352234,0.00043866,14]
[341068827,1730326241998,-162.971903,0.00043866,14]
[341068828,1730326242008,-556319.47320721,0.00043866,2]
[341068829,1730326242017,-17422.63735085,0.00043869,2]
[341068830,1730326242027,-500.0,0.00043873,2]
[341068831,1730326242037,-200.0,0.00043886,2]
[341068832,1730326242046,-2911.02710482,0.0004389,2]
[341068833,1730326242055,-500.0,0.00043897,2]
[341068834,1730326242065,-39511.46664202,0.00043898,2]
[341068835,1730326242075,-13255.19711762,0.000439,2]
[341068836,1730326242084,-253.52,0.000439,30]
[341068837,1730326242094,-448.68,0.000439,60]
[341068838,1730326242103,-300.0,0.000439,16]
[341068839,1730326242113,-500.0,0.00043904,2]
[341068840,1730326242122,-17422.63735085,0.00043905,2]
[341068841,1730326242131,-500.0,0.00043906,2]
[341068842,1730326242143,-500.0,0.00043906,2]
[341068843,1730326242152,-500.0,0.00043907,2]
[341068844,1730326242162,-500.0,0.00043907,2]
[341068845,1730326242171,-500.0,0.00043907,2]
[341068846,1730326242181,-500.0,0.00043907,2]
[341068847,1730326242190,-500.0,0.00043907,2]
[341068848,1730326242199,-500.0,0.00043907,2]
[341068849,1730326242209,-500.0,0.00043907,2]
[341068850,1730326242218,-598.08666823,0.00043907,2]
[341068851,1730326242227,-17420.87533526,0.00043911,2]
[341068852,1730326242237,-152.0,0.0004392,4]
[341068853,1730326242247,-200.0,0.00043921,2]
[341068854,1730326242256,-241.10586066,0.00043925,2]
[341068855,1730326242266,-154.03,0.0004393,2]
[341068856,1730326242275,-520.44800949,0.0004393,2]
[341068857,1730326242285,-17422.63735085,0.00043931,2]
[341068858,1730326242298,-22481.50069984,0.00043932,2]
[341068859,1730326242308,-13255.19711762,0.00043935,2]
[341068860,1730326242318,-17420.87533526,0.00043938,2]
[341068861,1730326242328,-500.0,0.00043939,2]
[341068862,1730326242337,-500.0,0.00043939,2]
[341068863,1730326242346,-151.0,0.0004394,14]
[341068864,1730326242356,-151.0,0.0004394,14]
[341068865,1730326242366,-151.0,0.0004394,14]
[341068866,1730326242375,-151.0,0.0004394,14]
[341068867,1730326242385,-151.0,0.0004394,14]
[341068868,1730326242395,-151.0,0.0004394,14]
[341068869,1730326242404,-300.405798,0.0004394,14]
[341068870,1730326242414,-151.0,0.0004394,14]
[341068871,1730326242423,-151.0,0.0004394,14]
[341068872,1730326242433,-151.0,0.0004394,14]
[341068873,1730326242442,-151.0,0.0004394,14]
[341068874,1730326242452,-151.0,0.0004394,14]
[341068875,1730326242462,-369.445019,0.0004394,14]
[341068876,1730326242471,-369.445019,0.0004394,14]
[341068877,1730326242481,-151.0,0.0004394,14]
[341068878,1730326242490,-168.781846,0.0004394,14]
[341068879,1730326242499,-168.781846,0.0004394,14]
[341068880,1730326242509,-229.603139,0.0004394,14]
[341068881,1730326242518,-798.839913,0.0004394,14]
[341068882,1730326242528,-229.603139,0.0004394,14]
[341068883,1730326242538,-798.839913,0.0004394,14]
[341068884,1730326242547,-151.0,0.0004394,14]
[341068885,1730326242558,-151.0,0.0004394,14]
[341068886,1730326242567,-556319.47320721,0.0004394,2]
[341068887,1730326242577,-500.0,0.00043943,2]
[341068888,1730326242586,-500.0,0.00043944,2]
[341068889,1730326242595,-500.0,0.00043944,2]
[341068890,1730326242605,-500.0,0.00043945,2]
[341068891,1730326242614,-500.0,0.00043945,2]
[341068892,1730326242623,-500.0,0.00043945,2]
[341068893,1730326242632,-500.0,0.00043945,2]
[341068894,1730326242643,-500.0,0.00043945,2]
[341068895,1730326242653,-500.0,0.00043945,2]
[341068896,1730326242662,-237.61601159,0.00043945,2]
[341068897,1730326242672,-200.0,0.00043947,2]
[341068898,1730326242682,-22481.50069984,0.00043948,2]
[341068899,1730326242691,-198.728757,0.00043948,14]
[341068900,1730326242700,-151.0,0.00043948,14]
[341068901,1730326242709,-151.0,0.00043948,14]
[341068902,1730326242718,-210.60767,0.00043948,14]
[341068903,1730326242728,-151.0,0.00043948,14]
[341068904,1730326242738,-162.193226,0.00043948,14]
[341068905,1730326242748,-151.0,0.00043949,2]
[341068906,1730326242758,-239.4466379,0.00043949,2]
[341068907,1730326242767,-151.0,0.00043949,14]
[341068908,1730326242777,-151.0,0.00043949,14]
[341068909,1730326242787,-198.769248,0.00043949,14]
[341068910,1730326242796,-78005.46324934,0.00043958,2]
[341068911,1730326242806,-154.03,0.00043967,2]
[341068912,1730326242815,-154.03,0.00043967,2]
[341068913,1730326242825,-13255.19711762,0.00043968,2]
[341068914,1730326242834,-151.0,0.0004397,14]
[341068915,1730326242843,-151.0,0.0004397,14]
[341068916,1730326242853,-151.0,0.0004397,14]
[341068917,1730326242862,-151.0,0.0004397,14]
[341068918,1730326242872,-151.0,0.0004397,14]
[341068919,1730326242881,-151.0,0.0004397,14]
[341068920,1730326242891,-151.0,0.0004397,14]
[341068921,1730326242900,-151.0,0.0004397,14]